bitfinex/quotes_SOLUSD_20240614
["timestamp","ask_amount","ask_price","bid_price","bid_amount"]
[1718378987720,15.341,145.23,145.17,15.2922]
[1718378987889,15.341,145.23,145.17,7.6459]
[1718378988086,15.341,145.23,145.15,10.1958]
[1718378988285,15.341,145.23,145.14,0.17]
[1718378988286,15.341,145.23,145.17,2.5486]
[1718378988494,22.9842,145.23,145.16,2.5488]
[1718378988686,22.9842,145.23,145.16,7.6466]
[1718378989204,15.341,145.23,145.14,0.34]
[1718378989425,15.341,145.23,145.18,2.5485]
[1718378989591,15.341,145.23,145.18,7.6455]
[1718378990707,15.341,145.23,145.17,7.6458]
[1718378990912,2.5487,145.17,145.09,23.9956]
[1718378991093,10.1947,145.18,145.09,6.1455]
[1718378991300,2.5488,145.17,145.1,15.2996]
[1718378991512,15.341,145.23,145.13,5.0987]
[1718378991809,2.5481,145.21,145.14,2.5492]
[1718378992014,28.0796,145.23,145.15,7.6469]
[1718378992226,38.2708,145.23,145.11,20.7]
[1718378992390,15.341,145.23,145.16,2.5488]
[1718378992584,15.341,145.23,145.14,0.17]
[1718378992818,2.5479,145.22,145.15,7.647]
[1718378993633,38.2708,145.23,145.11,21.49]
[1718378993634,15.341,145.23,145.11,21.49]
[1718378993807,7.6451,145.19,145.12,7.6485]
[1718378994112,15.341,145.23,145.11,42.19]
[1718378994296,25.4806,145.21,145.14,2.5492]
[1718378994913,2.5482,145.2,145.13,25.4936]
[1718378995119,2.5479,145.22,145.15,2.5489]
[1718378995428,15.341,145.23,145.16,15.2931]
[1718378995601,15.341,145.23,145.17,2.5487]
[1718378995990,15.341,145.23,145.17,15.2922]
[1718378996196,15.341,145.23,145.17,25.4869]
[1718378996393,15.341,145.23,145.18,2.5485]
[1718378996616,15.341,145.23,145.19,7.6449]
[1718378996921,15.341,145.23,145.19,2.5483]
[1718378997113,15.341,145.23,145.18,7.6452]
[1718378997309,15.341,145.23,145.18,7.6454]
[1718378997507,15.341,145.23,145.17,7.8158]
[1718378997697,17.8886,145.23,145.18,0.17]
[1718378997894,15.341,145.23,145.18,2.7185]
[1718378998426,15.341,145.23,145.18,0.17]
[1718378998734,15.341,145.23,145.18,2.7185]
[1718378998917,15.341,145.23,145.18,0.17]
[1718378999622,22.6399,145.27,145.18,0.51]
[1718378999822,25.1868,145.27,145.21,2.5479]
[1718379000015,22.6399,145.27,145.22,2.5478]
[1718379000317,22.9253,145.26,145.19,2.5483]
[1718379000521,22.6399,145.27,145.2,10.1923]
[1718379000700,22.6399,145.27,145.21,7.8137]
[1718379000902,25.1868,145.27,145.21,2.7179]
[1718379001203,25.1869,145.27,145.21,2.7179]
[1718379001434,22.6399,145.27,145.21,15.4579]
[1718379001724,16.4816,145.27,145.26,2.5471]
[1718379001930,253.8,145.3,145.22,45.17]
[1718379001931,253.8,145.3,145.24,17.8319]
[1718379002092,253.8,145.3,145.25,15.2836]
[1718379002295,258.893,145.3,145.23,15.2854]
[1718379002517,256.3465,145.3,145.24,2.5474]
[1718379002687,2.5466,145.29,145.23,2.5476]
[1718379002892,279.2645,145.3,145.23,2.5476]
[1718379003117,261.4394,145.3,145.23,7.6429]
[1718379003322,276.7181,145.3,145.23,2.5476]
[1718379003527,2.5466,145.29,145.23,2.5476]
[1718379003702,2.5467,145.29,145.22,22.9303]
[1718379003895,2.5466,145.29,145.23,2.5475]
[1718379004090,253.8,145.3,145.22,0.34]
[1718379004417,261.4395,145.3,145.23,0.51]
[1718379004725,2.5466,145.29,145.23,2.7176]
[1718379005035,253.8,145.3,145.24,0.17]
[1718379005233,253.8,145.3,145.27,7.6407]
[1718379005435,29.4884,145.35,145.28,2.5466]
[1718379005606,37.1458,145.35,145.28,7.6401]
[1718379005813,2.5457,145.34,145.28,7.6401]
[1718379006045,24.4179,145.35,145.29,2.5465]
[1718379006346,21.8722,145.35,145.29,22.9186]
[1718379006643,21.8722,145.35,145.27,0.17]
[1718379007004,26.9634,145.35,145.28,20.3732]
[1718379007333,24.4178,145.35,145.29,2.5466]
[1718379007705,24.4177,145.35,145.29,7.6398]
[1718379007909,24.4177,145.35,145.29,2.5466]
[1718379008110,29.5088,145.35,145.28,25.4668]
[1718379008606,21.8722,145.35,145.29,2.5466]
[1718379008807,21.8722,145.35,145.28,22.9202]
[1718379008808,24.4178,145.35,145.28,25.4668]
[1718379009012,21.8722,145.35,145.3,2.5464]
[1718379009211,21.8722,145.35,145.29,25.4654]
[1718379009533,21.8722,145.35,145.3,2.5464]
[1718379009910,21.8722,145.35,145.27,45.0]
[1718379010121,25.4621,145.32,145.25,7.6418]
[1718379010314,2.5463,145.31,145.25,2.5472]
[1718379010535,2.5463,145.31,145.25,2.5473]
[1718379010835,15.2777,145.31,145.24,7.642]
[1718379011047,16.5739,145.29,145.17,15.3518]
[1718379011359,16.5739,145.29,145.19,7.645]
[1718379011360,12.7352,145.27,145.19,7.645]
[1718379011638,6.4927,145.28,145.18,2.5484]
[1718379011639,22.9261,145.25,145.18,2.5484]
[1718379011930,7.6421,145.25,145.18,7.6454]
[1718379012108,2.5474,145.25,145.19,2.5483]
[1718379012305,11.5864,145.28,145.16,27.0295]
[1718379012517,11.5864,145.28,145.2,25.4813]
[1718379012518,2.547,145.27,145.2,25.4813]
[1718379012935,2.547,145.27,145.21,2.548]
[1718379013119,2.547,145.27,145.2,25.4813]
[1718379013317,15.2819,145.27,145.2,2.548]
[1718379013614,2.5471,145.26,145.2,2.548]
[1718379013813,25.4699,145.27,145.2,2.548]
[1718379014027,2.5471,145.26,145.2,2.548]
[1718379014225,2.5471,145.26,145.19,25.483]
[1718379014430,2.5471,145.26,145.2,2.5482]
[1718379014609,6.4927,145.28,145.17,0.17]
[1718379014810,9.0395,145.28,145.21,15.2877]
[1718379015011,6.4927,145.28,145.19,10.1933]
[1718379015213,6.4927,145.28,145.18,7.6454]
[1718379015214,7.6419,145.25,145.18,7.6454]
[1718379015645,2.5471,145.26,145.2,2.5481]
[1718379015818,22.923,145.27,145.2,2.5481]
[1718379016018,14.1332,145.28,145.21,7.6439]
[1718379016652,14.1332,145.28,145.22,2.5477]
[1718379016653,9.0395,145.28,145.22,2.5477]
[1718379016950,9.0395,145.28,145.21,25.4792]
[1718379017140,14.1331,145.28,145.21,5.0958]
[1718379017341,6.4927,145.28,145.22,15.2865]
[1718379017630,6.4927,145.28,145.23,25.4762]
[1718379017813,14.1331,145.28,145.21,25.819]
[1718379018013,6.4927,145.28,145.21,0.34]
[1718379018217,6.4927,145.28,145.23,2.5476]
[1718379018528,11.5863,145.28,145.2,18.0066]
[1718379018753,25.4737,145.25,145.18,2.5484]
[1718379018938,7.6417,145.26,145.19,7.6449]
[1718379019237,2.5471,145.26,145.19,22.9352]
[1718379019418,2.5471,145.26,145.19,25.4834]
[1718379019620,7.6414,145.26,145.19,15.29]
[1718379020023,2.5473,145.25,145.19,2.5482]
[1718379020455,22.9245,145.26,145.18,25.4843]
[1718379020626,2.548,145.21,145.14,25.492]
[1718379020943,15.4382,145.22,145.15,2.549]
[1718379021154,15.4382,145.22,145.14,5.0982]
[1718379021155,7.644,145.21,145.14,5.0982]
[1718379021459,17.9862,145.22,145.16,2.5488]
[1718379021632,15.4382,145.22,145.16,7.6466]
[1718379022023,30.7256,145.22,145.15,2.549]
[1718379022237,23.0819,145.22,145.15,7.6471]
[1718379022453,15.4382,145.22,145.17,2.5487]
[1718379022619,15.4382,145.22,145.16,5.0976]
[1718379022824,15.4382,145.22,145.17,2.5487]
[1718379023258,15.4382,145.22,145.16,25.4882]
[1718379023557,15.4382,145.22,145.16,2.5487]
[1718379023774,17.986,145.22,145.16,2.5487]
[1718379023950,15.4382,145.22,145.16,2.5487]
[1718379024246,17.986,145.22,145.16,2.5488]
[1718379024456,15.4382,145.22,145.16,2.5488]
[1718379024855,15.4382,145.22,145.16,7.6466]
[1718379025048,15.4382,145.22,145.16,15.2932]
[1718379025225,15.4382,145.22,145.16,7.6466]
[1718379025665,15.4382,145.22,145.17,12.9134]
[1718379025970,17.7658,145.27,145.21,2.548]
[1718379026267,17.7658,145.27,145.18,0.17]
[1718379026268,15.2189,145.27,145.23,5.0951]
[1718379026431,15.2189,145.27,145.23,7.6429]
[1718379026626,15.2189,145.27,145.23,22.929]
[1718379026831,15.2189,145.27,145.23,7.6428]
[1718379027248,15.2189,145.27,145.23,2.5475]
[1718379027467,15.2189,145.27,145.22,7.8131]
[1718379027683,15.2189,145.27,145.21,5.2659]
[1718379027885,15.2189,145.27,145.23,2.5476]
[1718379028190,15.2189,145.27,145.23,7.6429]
[1718379028355,15.2189,145.27,145.22,25.6476]
[1718379028558,15.2189,145.27,145.23,2.5476]
[1718379029676,15.2189,145.27,145.23,7.6429]
[1718379029975,15.2189,145.27,145.23,2.5476]
[1718379030179,15.2189,145.27,145.23,15.2858]
[1718379030479,15.2189,145.27,145.2,7.9843]
[1718379030664,15.2189,145.27,145.23,7.6429]
[1718379030863,15.2189,145.27,145.23,10.1905]
[1718379031080,15.2189,145.27,145.23,25.4763]
[1718379031253,30.6285,145.31,145.24,22.9265]
[1718379031453,30.6285,145.31,145.24,25.4738]
[1718379031672,38.2673,145.31,145.24,7.6421]
[1718379031971,38.2672,145.31,145.24,7.6421]
[1718379032191,2.5464,145.3,145.24,2.5474]
[1718379032488,48.4524,145.31,145.24,7.6423]
[1718379032857,38.2673,145.31,145.24,15.2847]
[1718379033069,2.5464,145.3,145.24,2.5474]
[1718379033383,16.3335,145.31,145.27,17.828]
[1718379033554,282.7882,145.35,145.25,0.17]
[1718379033555,275.128,145.35,145.29,15.2792]
[1718379033757,275.128,145.35,145.29,15.2794]
[1718379033981,275.128,145.35,145.29,25.4656]
[1718379034288,275.128,145.35,145.29,2.5465]
[1718379034289,282.7646,145.35,145.29,2.5465]
[1718379034491,277.6735,145.35,145.29,7.6397]
[1718379034656,275.128,145.35,145.3,5.0926]
[1718379034862,275.128,145.35,145.29,25.4652]
[1718379035171,277.6736,145.35,145.29,2.5466]
[1718379035365,277.6736,145.35,145.29,7.6398]
[1718379035561,275.128,145.35,145.29,15.2793]
[1718379035763,275.128,145.35,145.3,2.5464]
[1718379035978,275.128,145.35,145.3,15.2784]
[1718379036479,275.128,145.35,145.31,7.6387]
[1718379036882,275.128,145.35,145.32,2.546]
[1718379036883,253.8,145.35,145.32,2.546]
[1718379037067,253.8,145.35,145.3,5.0927]
[1718379037268,253.8,145.35,145.3,7.639]
[1718379037769,253.8,145.35,145.3,2.5463]
[1718379037997,253.8,145.35,145.3,7.6391]
[1718379038159,253.8,145.35,145.3,12.732]
[1718379038362,6.64,145.38,145.28,42.19]
[1718379038579,6.64,145.38,145.33,7.6375]
[1718379039511,6.64,145.38,145.32,17.8217]
[1718379039512,16.881854,145.39,145.31,21.66]
[1718379039666,16.881854,145.39,145.34,25.4568]
[1718379039979,16.881854,145.39,145.34,22.9112]
[1718379040182,24.516454,145.39,145.33,2.5459]
[1718379040368,16.881854,145.39,145.34,2.5457]
[1718379040572,16.881854,145.39,145.34,12.7285]
[1718379040776,16.881854,145.39,145.34,15.2742]
[1718379041094,16.881854,145.39,145.34,2.5456]
[1718379041271,16.881854,145.39,145.34,7.637]
[1718379042259,16.881854,145.39,145.34,15.2742]
[1718379042611,16.881854,145.39,145.34,7.637]
[1718379043019,16.881854,145.39,145.31,21.66]
[1718379043319,19.426854,145.39,145.33,2.5458]
[1718379043508,16.881854,145.39,145.32,45.34]
[1718379043718,16.881854,145.39,145.34,25.457]
[1718379044086,16.881854,145.39,145.35,7.6365]
[1718379044302,16.881854,145.39,145.34,7.6371]
[1718379044510,16.881854,145.39,145.34,17.82]
[1718379044723,16.881854,145.39,145.35,7.6366]
[1718379044894,16.881854,145.39,145.37,2.5452]
[1718379045081,16.881854,145.39,145.36,25.4533]
[1718379045280,16.881854,145.39,145.36,7.6359]
[1718379045481,16.881854,145.39,145.32,66.04]
[1718379045710,0.817954,145.39,145.37,2.5451]
[1718379046014,0.817954,145.39,145.36,25.453]
[1718379046511,0.817954,145.39,145.34,15.2739]
[1718379046812,0.817954,145.39,145.34,2.5457]
[1718379047501,0.817954,145.39,145.34,7.637]
[1718379047685,0.817954,145.39,145.35,2.5455]
[1718379048006,0.817954,145.39,145.35,7.6365]
[1718379048204,0.817954,145.39,145.36,2.5452]
[1718379048394,0.817954,145.39,145.36,15.272]
[1718379048708,0.817954,145.39,145.32,66.04]
[1718379048913,0.817954,145.39,145.35,0.17]
[1718379049086,0.817954,145.39,145.38,2.545]
[1718379049293,0.817954,145.39,145.37,25.4512]
[1718379049597,0.817954,145.39,145.38,2.545]
[1718379049795,0.817954,145.39,145.37,25.4511]
[1718379050016,0.817954,145.39,145.37,7.6351]
[1718379050507,0.817954,145.39,145.37,15.2707]
[1718379050901,0.817954,145.39,145.38,2.545]
[1718379051207,0.817954,145.39,145.38,25.7904]
[1718379051414,0.817954,145.39,145.38,71.1304]
[1718379053792,10.1727,145.49,145.38,71.1304]
[1718379053793,15.9924,145.51,145.39,0.17]
[1718379054005,22.8872,145.5,145.43,5.0882]
[1718379054215,2.543,145.5,145.44,2.5439]
[1718379054911,23.6209,145.51,145.45,2.5438]
[1718379055119,38.8776,145.51,145.44,7.6316]
[1718379055423,23.6209,145.51,145.45,2.5438]
[1718379055730,23.6207,145.51,145.44,25.4394]
[1718379055894,31.249,145.51,145.44,25.4394]
[1718379056093,18.5352,145.51,145.45,2.5437]
[1718379056627,22.8887,145.49,145.42,2.5443]
[1718379056789,15.2587,145.49,145.42,25.4422]
[1718379056996,2.5433,145.48,145.42,7.6327]
[1718379057206,2.5441,145.43,145.36,39.8159]
[1718379057413,17.8081,145.44,145.32,24.5448]
[1718379057414,100.0,145.44,145.32,24.5448]
[1718379057636,7.6347,145.39,145.32,47.4591]
[1718379057805,5.0888,145.42,145.35,12.7277]
[1718379058008,2.5444,145.42,145.35,5.091]
[1718379058195,7.6331,145.42,145.36,2.5453]
[1718379058391,2.5447,145.4,145.34,2.5457]
[1718379058597,25.4458,145.41,145.34,7.6371]
[1718379058915,22.9012,145.41,145.34,2.5457]
[1718379059225,7.6337,145.41,145.35,2.5455]
[1718379059725,7.6337,145.41,145.34,22.9112]
[1718379059901,2.5442,145.43,145.32,42.6989]
[1718379060099,2.5441,145.43,145.37,15.271]
[1718379060300,16.343,145.49,145.44,7.6317]
[1718379060515,21.4293,145.49,145.38,0.17]
[1718379060839,116.343,145.49,145.38,0.17]
[1718379061000,116.343,145.49,145.38,45.34]
[1718379061200,16.343,145.49,145.41,5.0888]
[1718379061399,23.9723,145.49,145.43,2.5441]
[1718379061633,23.9723,145.49,145.42,22.8985]
[1718379061634,6.1618,145.5,145.47,25.4338]
[1718379061927,16.513454,145.53,145.46,12.7182]
[1718379062112,16.513454,145.53,145.5,2.5429]
[1718379062310,16.513454,145.53,145.48,7.6295]
[1718379062506,16.513454,145.53,145.48,2.5431]
[1718379062706,16.513454,145.53,145.48,22.8893]
[1718379062901,16.513454,145.53,145.48,7.6297]
[1718379063133,16.513454,145.53,145.48,2.5432]
[1718379063301,16.513454,145.53,145.47,22.8902]
[1718379063503,16.513454,145.53,145.48,2.5432]
[1718379063803,16.513454,145.53,145.48,7.6296]
[1718379064006,16.513454,145.53,145.48,15.2594]
[1718379064208,16.513454,145.53,145.48,7.6296]
[1718379064500,16.513454,145.53,145.48,2.5432]
[1718379065115,16.513454,145.53,145.47,22.8901]
[1718379065116,16.513454,145.53,145.47,25.4334]
[1718379065431,16.513454,145.53,145.48,7.6298]
[1718379065600,16.513454,145.53,145.48,7.6297]
[1718379065798,16.513454,145.53,145.48,15.2596]
[1718379065999,16.513454,145.53,145.49,2.543]
[1718379066204,0.817954,145.53,145.51,7.6281]
[1718379066424,0.817954,145.53,145.52,2.5426]
[1718379066629,0.817954,145.53,145.51,2.5426]
[1718379066844,0.817954,145.53,145.51,3.91408145]
[1718379067010,0.817954,145.53,145.51,1.37148145]
[1718379067513,0.817954,145.53,145.52,2.5426]
[1718379067824,0.817954,145.53,145.47,15.3919]
[1718379068141,0.817954,145.53,145.48,2.7132]
[1718379068343,3.360454,145.53,145.46,12.7179]
[1718379068502,7.6279,145.52,145.46,2.5436]
[1718379068707,23.700754,145.53,145.46,7.6308]
[1718379068927,0.817954,145.53,145.47,7.6303]
[1718379069140,0.817954,145.53,145.49,2.543]
[1718379069740,0.817954,145.53,145.48,25.4323]
[1718379070113,0.817954,145.53,145.48,7.6295]
[1718379070435,0.817954,145.53,145.48,15.2594]
[1718379070741,0.817954,145.53,145.48,7.6297]
[1718379071536,0.817954,145.53,145.44,0.17]
[1718379071718,5.902954,145.53,145.46,5.0873]
[1718379071913,0.817954,145.53,145.47,7.63]
[1718379072230,0.817954,145.53,145.48,2.5432]
[1718379072606,0.817954,145.53,145.44,65.7]
[1718379072809,0.817954,145.53,145.45,0.17]
[1718379073006,3.360354,145.53,145.47,2.5434]
[1718379073311,7.6286,145.51,145.44,15.2636]
[1718379073511,5.0856,145.51,145.44,20.3515]
[1718379073725,7.6285,145.51,145.44,25.4394]
[1718379073927,7.6283,145.51,145.44,25.4393]
[1718379074122,0.817954,145.53,145.47,2.5434]
[1718379074123,3.360354,145.53,145.47,2.5434]
[1718379074322,0.817954,145.53,145.43,20.7]
[1718379074645,0.817954,145.53,145.49,2.5431]
[1718379075648,0.817954,145.53,145.52,7.6278]
[1718379075937,0.817954,145.53,145.5,7.6285]
[1718379076311,0.817954,145.53,145.45,20.7]
[1718379076613,0.817954,145.53,145.49,2.5431]
[1718379076807,0.817954,145.53,145.47,5.0867]
[1718379077014,5.0856,145.51,145.44,7.6315]
[1718379077327,7.628,145.52,145.45,15.2626]
[1718379077635,16.072654,145.53,145.46,25.4356]
[1718379077809,2.5426,145.52,145.46,2.5435]
[1718379078129,15.2556,145.52,145.45,25.437]
[1718379078327,2.5428,145.51,145.45,2.5437]
[1718379078522,18.0729,145.5,145.44,2.5439]
[1718379078731,7.6297,145.49,145.42,7.6328]
[1718379078928,15.2601,145.48,145.41,23.4259]
[1718379079148,10.1739,145.47,145.41,15.7926]
[1718379079321,100.0,145.49,145.41,15.7926]
[1718379079522,2.5437,145.46,145.41,15.7926]
[1718379079748,22.8905,145.48,145.41,18.337]
[1718379079942,2.5434,145.47,145.41,15.7926]
[1718379080247,2.5432,145.49,145.36,27.1092]
[1718379080529,33.3312,145.5,145.43,5.0882]
[1718379080729,23.1589,145.5,145.43,15.2646]
[1718379080937,2.5431,145.49,145.43,2.544]
[1718379081235,38.417,145.5,145.44,2.5439]
[1718379081236,15.5299,145.5,145.44,2.5439]
[1718379082335,115.5299,145.5,145.37,20.0]
[1718379082536,15.261,145.47,145.4,15.2678]
[1718379082743,2.5436,145.47,145.41,2.5444]
[1718379082915,17.8038,145.48,145.41,15.2668]
[1718379082916,15.2604,145.48,145.41,15.2668]
[1718379083245,7.6308,145.47,145.4,22.902]
[1718379083437,115.5299,145.5,145.38,45.51]
[1718379083622,2.5439,145.45,145.39,2.5448]
[1718379083823,2.5439,145.45,145.35,17.8183]
[1718379083824,2.5444,145.42,145.35,17.8183]
[1718379084023,2.5445,145.41,145.35,2.5455]
[1718379084537,2.5444,145.42,145.36,2.5453]
[1718379084748,7.6331,145.42,145.36,2.5453]
[1718379084926,5.0882,145.44,145.36,5.0907]
[1718379085129,5.0882,145.44,145.36,22.9079]
[1718379085130,7.6325,145.43,145.36,22.9079]
[1718379085327,106.1059,145.45,145.39,2.5448]
[1718379085328,13.7374,145.45,145.39,2.5448]
[1718379085559,6.1059,145.45,145.39,7.6345]
[1718379085722,7.6321,145.44,145.32,57.5574]
[1718379085923,2.5443,145.42,145.36,2.5453]
[1718379086127,2.5442,145.43,145.37,2.5452]
[1718379086629,6.1059,145.45,145.37,12.7254]
[1718379086828,2.544,145.44,145.38,2.5449]
[1718379087052,6.1059,145.45,145.4,5.0893]
[1718379087221,15.4338,145.46,145.43,2.5441]
[1718379087535,6.5768,145.49,145.43,25.4414]
[1718379087841,6.5768,145.49,145.45,5.0876]
[1718379088147,6.5768,145.49,145.45,15.2628]
[1718379088319,6.5768,145.49,145.45,7.6314]
[1718379088522,16.5295,145.5,145.42,0.17]
[1718379088720,16.5295,145.5,145.46,2.5436]
[1718379088952,16.5295,145.5,145.45,2.5438]
[1718379089159,16.5295,145.5,145.42,0.68]
[1718379089323,24.1584,145.5,145.43,22.897]
[1718379089525,16.5295,145.5,145.44,7.8018]
[1718379089739,19.0724,145.5,145.44,7.8018]
[1718379090042,16.5295,145.5,145.44,15.4337]
[1718379090246,16.5295,145.5,145.45,2.5438]
[1718379090849,16.5295,145.5,145.44,23.0655]
[1718379091068,16.5295,145.5,145.44,7.8016]
[1718379091222,16.5295,145.5,145.45,2.5438]
[1718379091420,23.952554,145.53,145.48,5.0865]
[1718379091643,23.952554,145.53,145.49,15.2584]
[1718379091947,23.952554,145.53,145.49,2.5431]
[1718379092147,23.952554,145.53,145.5,2.5428]
[1718379092447,23.952554,145.53,145.5,2.5429]
[1718379092641,17.311854,145.53,145.5,2.5429]
[1718379092951,17.311854,145.53,145.49,7.629]
[1718379093156,17.311854,145.53,145.5,2.5429]
[1718379093324,17.311854,145.53,145.49,25.4307]
[1718379093656,0.817954,145.53,145.51,2.5426]
[1718379094034,0.817954,145.53,145.49,7.6291]
[1718379094337,0.817954,145.53,145.49,2.543]
[1718379094546,0.817954,145.53,145.48,23.0587]
[1718379094746,0.817954,145.53,145.48,7.6294]
[1718379095070,0.817954,145.53,145.48,2.5432]
[1718379095248,0.817954,145.53,145.48,15.2596]
[1718379095562,0.817954,145.53,145.49,15.2585]
[1718379095868,0.817954,145.53,145.49,25.4308]
[1718379096043,0.817954,145.53,145.49,7.6291]
[1718379096433,0.817954,145.53,145.5,2.5429]
[1718379096655,0.817954,145.53,145.47,0.17]
[1718379096656,0.817954,145.53,145.47,7.63]
[1718379096943,2.5419,145.56,145.5,2.5428]
[1718379097147,2.5419,145.56,145.5,7.6286]
[1718379097347,2.5418,145.57,145.51,2.5427]
[1718379097671,7.6258,145.56,145.5,2.5429]
[1718379097959,25.4181,145.57,145.5,15.2574]
[1718379098138,2.5419,145.56,145.5,2.5428]
[1718379098462,25.4181,145.57,145.5,15.2574]
[1718379098642,7.6254,145.57,145.51,2.5427]
[1718379098959,7.6254,145.57,145.5,12.7146]
[1718379099161,7.6254,145.57,145.5,25.4291]
[1718379099367,15.2505,145.57,145.5,25.4291]
[1718379099877,23.122654,145.59,145.52,2.5424]
[1718379100067,15.498354,145.59,145.52,7.6278]
[1718379100239,23.122654,145.59,145.52,22.8828]
[1718379100442,30.746754,145.59,145.52,25.4253]
[1718379100659,2.5415,145.58,145.52,25.4253]
[1718379100873,2.5417,145.57,145.51,2.5426]
[1718379101176,7.6254,145.57,145.51,2.5427]
[1718379101337,18.039754,145.59,145.52,17.7977]
[1718379101541,15.498354,145.59,145.53,15.7642]
[1718379101776,15.498354,145.59,145.54,2.5422]
[1718379102071,15.498354,145.59,145.55,0.10978962]
[1718379102240,0.017954,145.59,145.55,0.10978962]
[1718379102564,0.017954,145.59,145.58,25.4154]
[1718379102757,0.017954,145.59,145.55,0.27978962]
[1718379102953,0.017954,145.59,145.55,22.98808962]
[1718379103261,0.017954,145.59,145.56,20.3348]
[1718379103447,0.017954,145.59,145.57,7.625]
[1718379103646,0.017954,145.59,145.58,2.5415]
[1718379103840,0.017954,145.59,145.57,2.5416]
[1718379104080,0.017954,145.59,145.55,22.98768962]
[1718379104377,0.017954,145.59,145.56,2.5418]
[1718379104543,0.017954,145.59,145.58,2.5415]
[1718379104756,0.017954,145.59,145.58,25.9254]
[1718379104966,0.017954,145.59,145.58,26.0954]
[1718379105271,0.017954,145.59,145.58,71.0954]
[1718379105684,0.017954,145.59,145.58,91.7954]
[1718379108379,0.817954,145.67,145.65,2.5402]
[1718379108584,0.817954,145.67,145.64,0.17]
[1718379108791,0.817954,145.67,145.63,2.5405]
[1718379108952,0.817954,145.67,145.62,0.17]
[1718379109159,0.817954,145.67,145.63,5.0812]
[1718379109481,0.817954,145.67,145.57,43.9874]
[1718379109698,0.817954,145.67,145.64,2.5404]
[1718379110175,0.817954,145.67,145.65,2.5402]
[1718379110369,0.817954,145.67,145.66,2.5401]
[1718379110681,0.817954,145.67,145.65,22.8619]
[1718379110987,0.817954,145.67,145.65,7.6206]
[1718379111184,0.817954,145.67,145.66,70.4014]
[1718379111370,0.817954,145.67,145.66,52.6204]
[1718379111757,0.817954,145.67,145.66,60.4108]
[1718379112067,0.817954,145.67,145.66,71.0814]
[1718379113579,0.817954,145.67,145.66,113.2514]
[1718379113749,0.817954,145.67,145.66,92.5514]
[1718379114178,0.817954,145.67,145.63,21.47]
[1718379114384,0.817954,145.67,145.64,2.5403]
[1718379114557,0.817954,145.67,145.66,2.5401]
[1718379114763,0.817954,145.67,145.64,2.5403]
[1718379115078,3.357954,145.67,145.61,24.0109]
[1718379115304,0.817954,145.67,145.64,2.5404]
[1718379115512,0.817954,145.67,145.65,0.10978962]
[1718379116419,0.817954,145.67,145.66,25.4014]
[1718379116570,0.817954,145.67,145.66,53.3004]
[1718379116778,0.817954,145.67,145.66,71.0814]
[1718379117109,0.817954,145.67,145.66,91.7814]
[1718379117601,0.817954,145.67,145.66,111.7814]
[1718379117810,0.2,145.69,145.68,46.098]
[1718379118124,0.817954,145.82,145.77,2.5382]
[1718379118317,2.5378,145.8,145.73,5.0778]
[1718379118620,7.8138,145.79,145.72,22.8513]
[1718379118913,7.8138,145.79,145.73,47.5389]
[1718379119069,7.8138,145.79,145.72,2.539]